{"text_format":"1","workbook":"xlsx","n_sheets":1,"sheets":["RAW data"],"not_rendered":{"charts":0,"images":0,"macros":1,"external_links":0,"defined_names":1,"comments":0,"pivot_tables":0},"unopened":[],"bounds":{"document_bytes":16777216,"sheet_cells":100000,"rows_first":2000,"rows_last":500,"rows_between":2000,"halvings":0,"cell_chars":16384,"cell_head_chars":4096},"cells_cut":0,"cells_raw":0,"read":"whole","date_system":"1900"}

{"sheet":"RAW data","index":0,"n_rows":101,"n_cols":51,"rows_kept":101,"cut":false,"hidden":false,"merged":[]}
["SR.no","Title","First name","middle name","last name","Gender","Date of Birth","Father name","Alternate email id","mobile no","Telephone number","Employe ID","Group","Unlocode","Degignation","formation","commissionerate","Date of joining service","Date of Relieving ","Date of Superannuation","Office Address","Remarks , If Any","Business justification for Email ID","ICES-prod","ICES-Pre prod","ICES service center-prod","ICES service center-Pre prod","ACES-centralExcise","ACES-Service Tax","RMS Pre Prod","RMS Prod","EDW","CDR","GST","Email","EBR",null,"Assistant Commissioner","Feb","20","1991","Jan","04","2019","","","","","",""]
[1,"Mr","Vinod","","Meena","Male",{"$f":"IF(C2=\"\",\"\",AN1&\"/\"&AM1&\"/\"&AO1)","v":"20/Feb/1991"},"Ramkesh Meena","vinod.meena2051@gov.in","9166770222","","","A","",{"$f":"AL1","v":"Assistant Commissioner"},"DIVISON KALMESHWAR, NAGPUR-II","Nagpur-ii",{"$f":"IF(C2=\"\",\"\",AQ1&\"/\"&AP1&\"/\"&AR1)","v":"04/Jan/2019"},{"$f":"IF(AU1=\"\",\"\",IF(C2=\"\",\"\",AT1&\"/\"&AS1&\"/\"&AU1))","v":""},{"$f":"IF(AX1=\"\",\"\",IF(C2=\"\",\"\",AW1&\"/\"&AV1&\"/\"&AX1))","v":""},"Office Of The Commissioner Central GST And Central Excise , Nagpur-II, GST Bhavan , Telangkhesi Road , Civil Lines, Nagpur-440001","","For Official Use","No","No","No","No","Yes","Yes","No","No","No","No","Yes","Yes","No",null,null,null,null,null,null,null,null,null,"AdditionalAssistantDirector","Additional Assistant Director",null,null,null,{"$f":"IF(AO1=\"\",0,AN1&\"/\"&AM1&\"/\"&AO1)","v":"20/Feb/1991"}]
["Sr.No","Title","First Name","Middle Name","Last Name","Gender","Date of Birth","Father's Name","Alternate Email ID","Mobile Number","Telephone Number ","Employee ID","Group","UNLOCODE","Designation","Formations","Commissionerate","Date of Joining Service","Date of Relieving","Date of Superannuation","Office Address  ","Remarks, if any","Business Justification for Email ID","ICES - Prod","ICES - Pre Prod","ICES Service Center-Prod","ICES Service Center - Pre Prod","ACES -Central Excise","ACES - Service tax","RMS - Pre Prod","RMS - Prod","EDW","CDR","GST","Email","EBR",null,null,null,null,null,null,null,null,null,"AdditionalCommissioner","Additional Commissioner",null,null,null,{"$f":"IF(AR1=\"\",0,AQ1&\"/\"&AP1&\"/\"&AR1)","v":"04/Jan/2019"}]
[1,null,null,null,null,null,null,null,null,null,null,null,null,null,null,null,null,null,null,null,null,null,null,null,null,null,null,null,null,null,null,null,null,null,null,null,null,null,null,null,null,null,null,null,null,"AdditionalDirector","Additional Director",null,null,null,{"$f":"IF(AU1=\"\",0,AT1&\"/\"&AS1&\"/\"&AU1)","v":0}]
[{"$f":"IF(C5=\"\",\"\",A4+1)","v":""},null,null,null,null,null,null,null,null,null,null,null,null,null,null,null,null,null,null,null,null,null,null,null,null,null,null,null,null,null,null,null,null,null,null,null,null,null,{"$f":"AN1&\"/\"&AM1&\"/\"&AO1","v":"20/Feb/1991"},{"$f":"DATEDIF(AM5,TODAY(),\"Y\")","v":29},{"$f":"DATEDIF(AM5,TODAY(),\"Ym\")","v":8},{"$f":"DATEDIF(AM5,TODAY(),\"md\")","v":29},{"$f":"AQ1&\"/\"&AP1&\"/\"&AR1","v":"04/Jan/2019"},null,null,"AdditionalDirectorGeneral","Additional Director General",null,null,null,{"$f":"IF(AX1=\"\",0,AW1&\"/\"&AV1&\"/\"&AX1)","v":0}]
[{"$f":"IF(C6=\"\",\"\",A5+1)","v":""},null,null,null,null,null,null,null,null,null,null,null,null,null,null,null,null,null,null,null,null,null,null,null,null,null,null,null,null,null,null,null,null,null,null,null,null,null,{"$f":"DATEDIF(AM5,TODAY(),\"Y\")","v":29},{"$f":"AN5-60","v":-31},{"$f":"SUM(AO5:AP5)","v":37},null,{"$f":"TODAY()-AQ5","v":685},null,null,"Administrativeofficer","Administrative Officer",null,null,null,{"$f":"AY2-AY3-AY4-AY5","v":-10180}]
["",null,null,null,null,null,null,null,null,null,null,null,null,null,null,null,null,null,null,null,null,null,null,null,null,null,null,null,null,null,null,null,null,null,null,null,null,null,60,null,null,null,null,null,null,"Appraiser","Appraiser"]
["",null,null,null,null,null,null,null,null,null,null,null,null,null,null,null,null,null,null,null,null,null,null,null,null,null,null,null,null,null,null,null,null,null,null,null,null,null,{"$f":"IFERROR(IF(AN5>60,0,IF(AN5=60,IF(AO6>0,0,1),1)),\"NO\")","v":1},null,null,null,null,null,null,"AssistantCommissioner","Assistant Audit Officer,"]
["",null,null,null,null,null,null,null,null,null,null,null,null,null,null,null,null,null,null,null,null,null,null,null,null,null,null,null,null,null,null,null,null,null,null,null,null,null,{"$f":"IFERROR(DATEDIF(AM5,AQ5,\"Y\"),\"NO\")","v":27},null,null,null,null,null,null,"AssistantDirector","Assistant Commissioner"]
["",null,null,null,null,null,null,null,null,null,null,null,null,null,null,null,null,null,null,null,null,null,null,null,null,null,null,null,null,null,null,null,null,null,null,null,null,null,{"$f":"TODAY()-AM5","v":10865},null,null,null,null,null,null,"Chairman","Assistant Director"]
["",null,null,null,null,null,null,null,null,null,null,null,null,null,null,null,null,null,null,null,null,null,null,null,null,null,null,null,null,null,null,null,null,null,null,null,null,null,null,null,null,null,null,null,null,"Chairperson","Audit Officer"]
["",null,null,null,null,null,null,null,null,null,null,null,null,null,null,null,null,null,null,null,null,null,null,null,null,null,null,null,null,null,null,null,null,null,null,null,null,null,null,null,null,null,null,null,null,"ChiefCommissioner","Auditor"]
["",null,null,null,null,null,null,null,null,null,null,null,null,null,null,null,null,null,null,null,null,null,null,null,null,null,null,null,null,null,null,null,null,null,null,null,null,null,null,null,null,null,null,null,null,"Commissioner","Chairman"]
["",null,null,null,null,null,null,null,null,null,null,null,null,null,null,null,null,null,null,null,null,null,null,null,null,null,null,null,null,null,null,null,null,null,null,null,null,null,null,null,null,null,null,null,null,"DeputyCommissioner","Chairperson"]
["",null,null,null,null,null,null,null,null,null,null,null,null,null,null,null,null,null,null,null,null,null,null,null,null,null,null,null,null,null,null,null,null,null,null,null,null,null,null,null,null,null,null,null,null,"DeputyDirector","Chief Commissioner"]
["",null,null,null,null,null,null,null,null,null,null,null,null,null,null,null,null,null,null,null,null,null,null,null,null,null,null,null,null,null,null,null,null,null,null,null,null,null,null,null,null,null,null,null,null,"DeputyDirectorGeneral","Commissioner"]
["",null,null,null,null,null,null,null,null,null,null,null,null,null,null,null,null,null,null,null,null,null,null,null,null,null,null,null,null,null,null,null,null,null,null,null,null,null,null,null,null,null,null,null,null,"DeputySecretary","Deputy Commissioner"]
["",null,null,null,null,null,null,null,null,null,null,null,null,null,null,null,null,null,null,null,null,null,null,null,null,null,null,null,null,null,null,null,null,null,null,null,null,null,null,null,null,null,null,null,null,"Director","Deputy Director"]
["",null,null,null,null,null,null,null,null,null,null,null,null,null,null,null,null,null,null,null,null,null,null,null,null,null,null,null,null,null,null,null,null,null,null,null,null,null,null,null,null,null,null,null,null,"DirectorGeneral","Deputy Director General"]
["",null,null,null,null,null,null,null,null,null,null,null,null,null,null,null,null,null,null,null,null,null,null,null,null,null,null,null,null,null,null,null,null,null,null,null,null,null,null,null,null,null,null,null,null,"ExecutiveAssistant","Deputy Secretary"]
["",null,null,null,null,null,null,null,null,null,null,null,null,null,null,null,null,null,null,null,null,null,null,null,null,null,null,null,null,null,null,null,null,null,null,null,null,null,null,null,null,null,null,null,null,"Inspector","Director"]
["",null,null,null,null,null,null,null,null,null,null,null,null,null,null,null,null,null,null,null,null,null,null,null,null,null,null,null,null,null,null,null,null,null,null,null,null,null,null,null,null,null,null,null,null,"IntelligenceOfficer","Director General"]
["",null,null,null,null,null,null,null,null,null,null,null,null,null,null,null,null,null,null,null,null,null,null,null,null,null,null,null,null,null,null,null,null,null,null,null,null,null,null,null,null,null,null,null,null,"JointCommissioner","Director General Cag"]
["",null,null,null,null,null,null,null,null,null,null,null,null,null,null,null,null,null,null,null,null,null,null,null,null,null,null,null,null,null,null,null,null,null,null,null,null,null,null,null,null,null,null,null,null,"JointDirector","Examiner"]
["",null,null,null,null,null,null,null,null,null,null,null,null,null,null,null,null,null,null,null,null,null,null,null,null,null,null,null,null,null,null,null,null,null,null,null,null,null,null,null,null,null,null,null,null,"JointSecretary","Executive Assistant"]
["",null,null,null,null,null,null,null,null,null,null,null,null,null,null,null,null,null,null,null,null,null,null,null,null,null,null,null,null,null,null,null,null,null,null,null,null,null,null,null,null,null,null,null,null,"JuniorTranslator","Inspector"]
["",null,null,null,null,null,null,null,null,null,null,null,null,null,null,null,null,null,null,null,null,null,null,null,null,null,null,null,null,null,null,null,null,null,null,null,null,null,null,null,null,null,null,null,null,"Member","Intelligence Officer"]
["",null,null,null,null,null,null,null,null,null,null,null,null,null,null,null,null,null,null,null,null,null,null,null,null,null,null,null,null,null,null,null,null,null,null,null,null,null,null,null,null,null,null,null,null,"OfficeronSpecialDuty","Joint Commissioner"]
["",null,null,null,null,null,null,null,null,null,null,null,null,null,null,null,null,null,null,null,null,null,null,null,null,null,null,null,null,null,null,null,null,null,null,null,null,null,null,null,null,null,null,null,null,"PrincipalAdditionalDirectorGeneral","Joint Director"]
["",null,null,null,null,null,null,null,null,null,null,null,null,null,null,null,null,null,null,null,null,null,null,null,null,null,null,null,null,null,null,null,null,null,null,null,null,null,null,null,null,null,null,null,null,"PrincipalChiefCommissioner","Joint Secretary"]
["",null,null,null,null,null,null,null,null,null,null,null,null,null,null,null,null,null,null,null,null,null,null,null,null,null,null,null,null,null,null,null,null,null,null,null,null,null,null,null,null,null,null,null,null,"PrincipalCommissioner","Junior Translator"]
["",null,null,null,null,null,null,null,null,null,null,null,null,null,null,null,null,null,null,null,null,null,null,null,null,null,null,null,null,null,null,null,null,null,null,null,null,null,null,null,null,null,null,null,null,"PrincipalDirectorGeneral","Member"]
["",null,null,null,null,null,null,null,null,null,null,null,null,null,null,null,null,null,null,null,null,null,null,null,null,null,null,null,null,null,null,null,null,null,null,null,null,null,null,null,null,null,null,null,null,"ResearchOfficer","Officer On Special Duty"]
["",null,null,null,null,null,null,null,null,null,null,null,null,null,null,null,null,null,null,null,null,null,null,null,null,null,null,null,null,null,null,null,null,null,null,null,null,null,null,null,null,null,null,null,null,"SectionOfficer","Other Government Officer"]
["",null,null,null,null,null,null,null,null,null,null,null,null,null,null,null,null,null,null,null,null,null,null,null,null,null,null,null,null,null,null,null,null,null,null,null,null,null,null,null,null,null,null,null,null,"SeniorIntelligenceOfficer","Pay & Accounts Officer"]
["",null,null,null,null,null,null,null,null,null,null,null,null,null,null,null,null,null,null,null,null,null,null,null,null,null,null,null,null,null,null,null,null,null,null,null,null,null,null,null,null,null,null,null,null,"SeniorResearchOfficer","Preventive Officer"]
["",null,null,null,null,null,null,null,null,null,null,null,null,null,null,null,null,null,null,null,null,null,null,null,null,null,null,null,null,null,null,null,null,null,null,null,null,null,null,null,null,null,null,null,null,"SeniorTechnicalOfficer","Principal Additional Director General"]
["",null,null,null,null,null,null,null,null,null,null,null,null,null,null,null,null,null,null,null,null,null,null,null,null,null,null,null,null,null,null,null,null,null,null,null,null,null,null,null,null,null,null,null,null,"SeniorTranslator","Principal Chief Commissioner"]
["",null,null,null,null,null,null,null,null,null,null,null,null,null,null,null,null,null,null,null,null,null,null,null,null,null,null,null,null,null,null,null,null,null,null,null,null,null,null,null,null,null,null,null,null,"SpecialDirector","Principal Commissioner"]
["",null,null,null,null,null,null,null,null,null,null,null,null,null,null,null,null,null,null,null,null,null,null,null,null,null,null,null,null,null,null,null,null,null,null,null,null,null,null,null,null,null,null,null,null,"Superintendent","Principal Director Cag"]
["",null,null,null,null,null,null,null,null,null,null,null,null,null,null,null,null,null,null,null,null,null,null,null,null,null,null,null,null,null,null,null,null,null,null,null,null,null,null,null,null,null,null,null,null,"TechnicalOfficer","Principal Director General"]
["",null,null,null,null,null,null,null,null,null,null,null,null,null,null,null,null,null,null,null,null,null,null,null,null,null,null,null,null,null,null,null,null,null,null,null,null,null,null,null,null,null,null,null,null,"UnderSecretary","Research Officer"]
["",null,null,null,null,null,null,null,null,null,null,null,null,null,null,null,null,null,null,null,null,null,null,null,null,null,null,null,null,null,null,null,null,null,null,null,null,null,null,null,null,null,null,null,null,"Examiner","Section Officer"]
["",null,null,null,null,null,null,null,null,null,null,null,null,null,null,null,null,null,null,null,null,null,null,null,null,null,null,null,null,null,null,null,null,null,null,null,null,null,null,null,null,null,null,null,null,"PreventiveOfficer","Senior Audit Officer"]
["",null,null,null,null,null,null,null,null,null,null,null,null,null,null,null,null,null,null,null,null,null,null,null,null,null,null,null,null,null,null,null,null,null,null,null,null,null,null,null,null,null,null,null,null,"Pay&AccountsOfficer","Senior Auditor"]
["",null,null,null,null,null,null,null,null,null,null,null,null,null,null,null,null,null,null,null,null,null,null,null,null,null,null,null,null,null,null,null,null,null,null,null,null,null,null,null,null,null,null,null,null,"TaxAssistant","Senior Intelligence Officer"]
["",null,null,null,null,null,null,null,null,null,null,null,null,null,null,null,null,null,null,null,null,null,null,null,null,null,null,null,null,null,null,null,null,null,null,null,null,null,null,null,null,null,null,null,null,"SeniorTaxAssistant","Senior Research Officer"]
["",null,null,null,null,null,null,null,null,null,null,null,null,null,null,null,null,null,null,null,null,null,null,null,null,null,null,null,null,null,null,null,null,null,null,null,null,null,null,null,null,null,null,null,null,"OtherGovernmentOfficer","Senior Tax Assistant"]
["",null,null,null,null,null,null,null,null,null,null,null,null,null,null,null,null,null,null,null,null,null,null,null,null,null,null,null,null,null,null,null,null,null,null,null,null,null,null,null,null,null,null,null,null,null,"Senior Technical Officer"]
["",null,null,null,null,null,null,null,null,null,null,null,null,null,null,null,null,null,null,null,null,null,null,null,null,null,null,null,null,null,null,null,null,null,null,null,null,null,null,null,null,null,null,null,null,null,"Senior Translator"]
["",null,null,null,null,null,null,null,null,null,null,null,null,null,null,null,null,null,null,null,null,null,null,null,null,null,null,null,null,null,null,null,null,null,null,null,null,null,null,null,null,null,null,null,null,null,"Special Director"]
["",null,null,null,null,null,null,null,null,null,null,null,null,null,null,null,null,null,null,null,null,null,null,null,null,null,null,null,null,null,null,null,null,null,null,null,null,null,null,null,null,null,null,null,null,null,"Superintendent"]
["",null,null,null,null,null,null,null,null,null,null,null,null,null,null,null,null,null,null,null,null,null,null,null,null,null,null,null,null,null,null,null,null,null,null,null,null,null,null,null,null,null,null,null,null,null,"Supervisor"]
["",null,null,null,null,null,null,null,null,null,null,null,null,null,null,null,null,null,null,null,null,null,null,null,null,null,null,null,null,null,null,null,null,null,null,null,null,null,null,null,null,null,null,null,null,null,"Tax Assistant"]
["",null,null,null,null,null,null,null,null,null,null,null,null,null,null,null,null,null,null,null,null,null,null,null,null,null,null,null,null,null,null,null,null,null,null,null,null,null,null,null,null,null,null,null,null,null,"Technical Officer"]
["",null,null,null,null,null,null,null,null,null,null,null,null,null,null,null,null,null,null,null,null,null,null,null,null,null,null,null,null,null,null,null,null,null,null,null,null,null,null,null,null,null,null,null,null,null,"Under Secretary"]
[""]
[""]
[""]
[""]
[""]
[""]
[""]
[""]
[""]
[""]
[""]
[""]
[""]
[{"$f":"IF(C70=\"\",\"\",A69+1)","v":""}]
[""]
[""]
[""]
[""]
[""]
[""]
[""]
[""]
[""]
[""]
[""]
[""]
[""]
[""]
[""]
[""]
[""]
[""]
[""]
[""]
[""]
[""]
[""]
[""]
[""]
[""]
[""]
[""]
[""]
[""]
[""]